Cogmind - Beta 16.1 @@@ ROGUE MODE // 2026.04.14 @ 02:27:23 Player: Soul Result: Destroyed by S-10 Pest with Light Assault Rifle Performance ------------- Evolutions (0) 0 Regions Visited (1) 200 Robots Destroyed (17) 85 Value Destroyed (440) 440 Prototype IDs (4) 80 Alien Tech Used (0) 0 Bonus (0) 0 TOTAL SCORE: 805 Bonus ------- None Cogmind --------- Core Integrity 0/250 Matter 251/300 Energy 250/250 System Corruption 0% Temperature Cool (0) Movement Walking (120) Location -10/Materials Parts ------- > --- POWER (1) -------- Ion Engine > --- PROPULSION (2) --- Aluminum Leg Aluminum Leg > --- UTILITY (2) ------ Structural Scanner Power Shielding > --- WEAPON (2) ------- Light Assault Rifle Light Assault Rifle > --- INVENTORY (5) ---- Light Ion Engine Aluminum Leg EM Pulse Gun Improved Assault Rifle Improved Assault Rifle Peak State ------------ > --- POWER ------------ Ion Engine > --- PROPULSION ------- Wheel Wheel > --- UTILITY ---------- Structural Scanner Power Shielding > --- WEAPON ----------- Medium Laser Light Assault Rifle > --- INVENTORY -------- Ion Engine Aluminum Leg Aluminum Leg EM Pulse Gun Mining Laser [Rating: 7] Favorites ----------- Power Ion Engine Engine Ion Engine Propulsion Aluminum Leg Leg Aluminum Leg Wheel Wheel Utility Power Shielding Device Structural Scanner Protection Power Shielding Weapon Light Assault Rifle Energy Gun Medium Laser Ballistic Gun Light Assault Rifle Build | -11 -10 ------- Run | Yrd Mat Slots Evolved . | . . Power . | . . Propulsion . | . . Utility . | . . Weapon . | . . Parts Attached 17 | 6 11 Power 4 | 1 3 Engine 4 | 1 3 Core . | . . Reactor . | . . Propulsion 8 | 3 5 Treads . | . . Leg 6 | 1 5 Wheel 2 | 2 . Hover . | . . Flight . | . . Utility 2 | . 2 Device 1 | . 1 Storage . | . . Processor . | . . Hackware . | . . Protection 1 | . 1 Artifact . | . . Weapon 3 | 2 1 Energy Gun 1 | 1 . Energy Cannon . | . . Ballistic Gun 2 | 1 1 Ballistic Cannon . | . . Launcher . | . . Special Weapon . | . . Impact Weapon . | . . Slashing Weapon . | . . Piercing Weapon . | . . Special Melee Weapon . | . . Unidentified Prototypes . | . . Parts Lost 5 | . 5 Power 1 | . 1 Propulsion 3 | . 3 Utility . | . . Weapon 1 | . 1 Highest Loss Streak 2 | . 2 To Critical Strikes . | . . Average Backups 4 | 1 4 Power 1 | . 1 Propulsion . | . . Utility . | . . Weapon 1 | . 2 Tool/Special . | . . Unused Backups 7 | 1 6 Power . | . . Propulsion 3 | 1 2 Utility . | . . Weapon 4 | . 4 Tool/Special . | . . Average Slot Usage (%) 92 | . 92 Engine 13 | . 13 Leg 18 | . 18 Wheel 8 | . 8 Device 11 | . 11 Protection 11 | . 11 Energy Gun 6 | . 6 Ballistic Gun 21 | . 21 Peak Build Rating 7 | 5 7 Average Rating 6 | 3 6 On Entrance 2 | . 5 Avg Prop Armor Cover (%) 14 | 15 10 Naked Turns . | . . Heaviest Build 10 | 8 10 Greatest Support 20 | 3 20 Greatest Overweight (x) 2 | 2 . Average Overweight (x) . | 1 . Largest Inventory Capacity 5 | 5 5 Average Capacity 5 | 5 5 Most Carried 5 | 5 5 Average Carried 4 | 2 4 Final Capacity 5 | 5 5 Final Carried 5 | 2 5 Class Distribution -------------------- 100% | Mutant Dominant Class ---------------- Mutant | -10/Materials Resources | -11 -10 ----------- Run | Yrd Mat Matter Collected 402 | 207 195 Remotely . | . . Salvage Created 566 | . 566 Parts 28 | . 28 Haulers Intercepted . | . . Recyclers Shooed 1 | . 1 Parts Field Recycled . | . . Retrieved Matter . | . . Parts Self-Destructed . | . . Prevented . | . . Parts Restored . | . . Kills | -11 -10 ------- Run | Yrd Mat Combat Hostiles Destroyed 16 | . 16 Guns 16 | . 16 Classes Destroyed 3 | . 3 Watcher 1 | . 1 Swarmer 5 | . 5 Grunt 11 | . 11 Best Kill Streak 3 | . 3 Combat Bots Only 3 | . 3 Max Kills in Single Turn 1 | . 1 Gunslinging . | . . Exploded . | . . Melee . | . . Uniques/NPCs Destroyed . | . . Combat | -11 -10 -------- Run | Yrd Mat Hostile Shots Fired 123 | . 123 Missed 27 | . 27 Hits 96 | . 96 Projectile 96 | . 96 Critical Strikes 3 | . 3 Damage Taken 917 | . 917 Core 253 | . 253 Absorbed by Shields . | . . Redirected to Shielding 35 | . 35 Core Remaining (%) 100 | 100 . Volleys Fired 73 | . 73 Largest 2 | . 2 Hottest 70 | . 70 Shots Fired 143 | . 143 Gun 143 | . 143 Cannon . | . . Launcher . | . . Special . | . . Kinetic 102 | . 102 Thermal 41 | . 41 Explosive . | . . Electromagnetic . | . . Robot Hit Streak 8 | . 8 Robot Miss Streak 6 | . 6 Penetration Max . | . . Secondary Targets 2 | . 2 Max Gunslinging Chain 1 | . 1 Shots Hit Robots 77 | . 77 Core Hits 35 | . 35 Critical Kills 1 | . 1 Critical Parts Destroyed . | . . Critical Strikes 3 | . 3 Burn 2 | . 2 Destroy 1 | . 1 Melee Attacks . | . . Impact . | . . Slashing . | . . Piercing . | . . Sneak Attacks . | . . Combat Hostiles . | . . Follow-up Attacks . | . . Damage Inflicted 765 | . 765 Guns 759 | . 759 Cannons . | . . Explosions . | . . Melee . | . . Ramming 6 | . 6 Kinetic 400 | . 400 Thermal 359 | . 359 Explosive . | . . Electromagnetic . | . . Impact . | . . Slashing . | . . Piercing . | . . Highest Corruption . | . . Average Corruption . | . . Corruption Purged . | . . Corruption Blocked . | . . Overload Shots . | . . Overflow Damage . | . . Projectiles . | . . Explosions . | . . Melee . | . . Knockbacks . | . . Impact . | . . Kinetic . | . . Secondary . | . . Self-Inflicted Damage . | . . Shots . | . . Rammed . | . . Targets Rammed 1 | . 1 Kicked 1 | . 1 Crushed . | . . Highest Temperature 286 | . 286 Average Temperature 73 | . 73 Received Heat Transfer 282 | . 282 Effects 1 | . 1 Energy Bleed 1 | . 1 Siege Activations . | . . Martial Activations . | . . Shielding Activations . | . . Robots Disrupted . | . . Combat Hostiles . | . . Robots Corrupted . | . . Combat Hostiles . | . . Parts Fried . | . . Impact Corruptions . | . . Robots Melted . | . . Combat Hostiles . | . . Parts Melted 2 | . 2 Heat Transferred 1221 | . 1221 Parts Sabotaged . | . . Parts Stolen . | . . Parts Stripped . | . . Power Chain Reactions . | . . Alert | -11 -10 ------- Run | Yrd Mat Maximum Alert Level . | . . Low Security (%) 100 | 100 100 Level 1 . | . . Level 2 . | . . Level 3 . | . . Level 4 . | . . Level 5 . | . . High Security . | . . Max Security . | . . Peak Influence 73 | . 73 Initial . | . . Average 21 | . 23 Influence Increases 422 | . 422 Destroy 0b10 Robot/C 320 | . 320 Destroy 0b10 Robot/NC 5 | . 5 Destroy Leader 52 | . 52 Successful Hack 29 | . 29 Destroy Structure 1 | . 1 Partial Spotted 15 | . 15 Influence Decreases 398 | . 398 Time Decay 312 | . 312 Lost Part 40 | . 40 Purge Threat 46 | . 46 Squads Dispatched 5 | . 5 Investigation 4 | . 4 Extermination . | . . Reinforcement 1 | . 1 Assault . | . . Garrison . | . . Intercept . | . . Searches Triggered . | . . Construction Impeded . | . . Haulers Reinforced . | . . Active Scanning Responses . | . . Cargo Convoy Interrupts . | . . Stealth | -11 -10 --------- Run | Yrd Mat Distress Signals . | . . Communications Jammed . | . . Distress Signals . | . . Times Spotted 30 | . 30 Peak Tracking Total 5 | . 5 Tactical Retreats . | . . Traps | -11 -10 ------- Run | Yrd Mat Traps Triggered . | . . Indirectly . | . . Trap Hack Attempts . | . . Triggered . | . . Disarmed 6 | . 6 Reprogrammed . | . . Reused . | . . Traps Extracted . | . . Installed . | . . Triggered . | . . Machines | -11 -10 ---------- Run | Yrd Mat Machines Disabled . | . . Max in Single Turn . | . . Machines Repaired . | . . Machines Dismantled . | . . Machines Sabotaged . | . . Overloaded Fab Kills . | . . Hacking | -11 -10 --------- Run | Yrd Mat Machines Accessed 7 | . 7 Terminals 6 | . 6 Fabricators . | . . Repair Stations . | . . Recycling Units 1 | . 1 Scanalyzers . | . . Garrison Access . | . . Total Hacks 21 | . 21 Successful 14 | . 14 Failed 7 | . 7 Catastrophic . | . . Database Lockouts . | . . Manual 16 | . 16 Terminals 20 | . 20 Fabricators . | . . Repair Stations . | . . Recycling Units 1 | . 1 Scanalyzers . | . . Garrison Access . | . . Terminal Hacks 7 | . 7 Prototype ID Bank 2 | . 2 Terminal Index 1 | . 1 Fabricator Index 1 | . 1 Alert Level 1 | . 1 Unreport Threat 1 | . 1 Disarm Traps 1 | . 1 Fabricator Hacks . | . . Repair Station Hacks . | . . Recycling Unit Hacks 1 | . 1 Report Inventory 1 | . 1 Scanalyzer . | . . Garrison Access Hacks . | . . Unauthorized Hacks 6 | . 6 Terminals 6 | . 6 Botnet 6 | . 6 Fabricators . | . . Repair Stations . | . . Recycling Units . | . . Scanalyzers . | . . Garrison Access . | . . Data Cores Recovered . | . . Used . | . . Hacking Detections 5 | . 5 Full Trace Events 4 | . 4 Feedback Events . | . . Feedback Blocked . | . . Robot Schematics Acquired . | . . Robots Built . | . . Authchips . | . . Time . | . . Total Robot Build Rating . | . . Part Schematics Acquired . | . . Parts Built . | . . Authchips . | . . Time . | . . Total Part Build Rating . | . . Part Studies Acquired . | . . Parts Repaired . | . . Time . | . . Parts Recycled . | . . Recycled Matter . | . . Retrieved Matter . | . . Retrieved Components . | . . Parts Scanalyzed . | . . Part Schematics Acquired . | . . Parts Damaged . | . . Bothacking | -11 -10 ------------ Run | Yrd Mat Used RIF Installer . | . . Robots Hacked . | . . Non-combat . | . . Combat . | . . Robot Hacks Applied . | . . Relay Couplers Released . | . . Fabnet Peak Effective % . | . . Robots Rewired . | . . Allies Hacked . | . . Hacks Repelled . | . . Allies | -11 -10 -------- Run | Yrd Mat Total Allies . | . . Largest Group . | . . Highest-Rated Group . | . . Highest-Rated Ally . | . . Total Orders . | . . Ally Attacks . | . . Total Damage . | . . Kills . | . . Allies Corrupted . | . . Allies Melted . | . . Intel | -11 -10 ------- Run | Yrd Mat Active Infowar (turns) 864 | . 864 Structural 864 | . 864 Robot Analysis Total . | . . Derelict Logs Recovered . | . . Drone Launches . | . . Drone Recoveries . | . . Exploration | -11 -10 ------------- Run | Yrd Mat Turns Passed 1111 | 64 1047 Spaces Moved 720 | 42 678 Core 42 | 42 . Treads . | . . Legs 375 | . 375 Wheels 303 | . 303 Hover . | . . Flight . | . . Fastest Speed 50 | 50 80 Average Speed 103 | 119 102 Slowest Speed 150 | 150 120 Overloaded Moves . | . . Propulsion Burnouts . | . . Robots Hopped . | . . Potential Cave-ins . | . . Cave-ins Triggered . | . . Exploration Rate (%) 37 | 4 70 Regions Visited 1 Branch Regions . Pre-discovered Areas . | . . Known Exits Taken . | . . Unknown Exits Taken 1 | 1 . Scrap Searched . | . . Spaces Dug . | . . Terrain Destroyed . | . . Melee . | . . Projectile . | . . AOE . | . . Terrain Rammed . | . . Walls Destroyed . | . . Machines Disabled . | . . Actions | -11 -10 --------- Run | Yrd Mat Total 966 | 56 910 Wait 133 | . 133 Move 719 | 41 678 Hop . | . . Pick Up 16 | 7 9 Fast Attach 8 | 2 6 Attach 8 | 4 4 Detach . | . . Swap 1 | . 1 Drop 7 | 2 5 Fire 73 | . 73 Melee . | . . Ram . | . . Kick 1 | . 1 Crush . | . . Escape Stasis . | . . Rewire . | . . Trap . | . . Miscellaneous . | . . Route ------- -11/Scrapyard -10/Materials (discovered 2 exits: [*Mat] / [*Min]) History --------- Turn | Location | Event 4 | -11/Scrapyard | Discovered new exit (range 15) 65 | -11/Scrapyard | Entered Materials 260 | -10/Materials | Discovered new exit (range 7) 306 | -10/Materials | Build established: Mutant 503 | -10/Materials | Discovered new exit (range 10) 557 | -10/Materials | Core integrity fell below 50% 688 | -10/Materials | Core integrity fell below 20% 1112 | -10/Materials | Destroyed by S-10 Pest with Light Assault Rifle Last Messages --------------- Trojan loaded successfully. Testing... Terminal linked with 5 systems. Awaiting botnet instructions. >>Prototypes Downloading prototype IDs... Imp. Medium Laser Imp. Flight Unit >>Alert(Check) Current Alert Level: Low Security 01066_ O-16 Technician: "IFF HANDSHAKE FAILED. SECURING TERMINAL." 01066_ O-16 Technician uses terminal to summon reinforcements. 01066_ ALERT: Hostiles spotted, dispatching reinforcements to Terminal M002. 01066_ O-16 Technician locks terminal. 01100_ S-10 Pest destroyed. 01103_ K-01 Serf collects debris. 01105_ R-06 Scavenger collects Lgt. Ion Engine. Map ----- +----------------------------------------------------+ | | | | | | | | | | | | | | | | | ?????????????????????????????????????? | | ?????????????????????????????????????? | | ?????????????????????????????????????? | | ?????????????????????????????????????? | | ??????????????????????"??????????????? | | ????????????##### ????" "????????????? | | ????????????##### ???? ?????????????? | | ???????????? # ??? ???? | | ???????? ######+###+####+##???? | | ##+##???????? #### # ### ##???? | | ??????? #### ?? ##???? | | ##?????? ???## ##?? ##???? | | ###### #### #### ##???? | | # ########+####### #### ##???? | | # ##???? | | # % ##???? | | + ### T #s######+##?### | | # ### #=@ sk ## | | # !! ### # ## | | # !! ### # ## | | # ### """ # ## | | # ] ### """ # ## | | # " ### """ [ # ## | | # == T ### ############### | | # = " ### # ##### | | ########## # ????????????? | | # ########## # ????????????? | | ######## ##??????## # ????????????? | | ######## ##??????## + ????????????? | | ??????## ##?????? ## # ????????????? | | ??????## ##?????? ## # ????????????? | | ??????## ##????????? + ????????????? | | ??????## ##????????? ##????????????? | | ??????## ##????????? ##????????????? | | ???????? ##????????? ##????????????? | | ???????? ##????????????????????????? | | ????????? ????????????????????????? | | ????????? ?????????????????????????? | | ????????? ???????????????????????????? | | ?????????????????????????????????????? | | ?????????????????????????????????????? | | ?????????????????????????????????????? | +----------------------------------------------------+ Best States ------------- Heat Dissipation 25 Energy Generation 10 Energy Capacity 250 Matter Stores 300 Matter Capacity 300 Sight Range 16 Terrain Scan Density 10 Power Shielding 33 Evasion (%) 55 Item Schematics ----------------- None Robot Schematics ------------------ None Fabricated ------------ Nothing Repaired ---------- Nothing Studied --------- None Alien Tech Used ----------------- None Achievements -------------- None Challenges ------------ None Game ------ Seed PointyTitaniumRay Manual? 0 Play Time 00:19:43 Cumulative 21.2 hours Start 2026.04.14 @ 02:07:52 End 2026.04.14 @ 02:27:23 Sessions 1 Manual Loads 0 Difficulty Rogue Special Mode None Game No. 45 Rogue 25 Adventurer 0 Explorer 20 Win Type - Total 0 Types 0/0/0/0/0/0/0/0/0/0 Lore% 7 Gallery% 19 Achievement% 15 Wizard Run 0 Options --------- Layout 1 ASCII 0 Keyboard 0 Movement Mouse Keybinds 0 Fullscreen 1 Font 16/SmallcapsGlow Map View 55x38 Zoom Use 0% Tactical HUD 1 Map Filters NONE Filters NONE Steam 1 RUN: 2fd6de3b-d063-407c-a09d-432849f801a5